Cogmind - Beta 13 @@@ ROGUE MODE // 2024.06.19 @ 00:08:34 Player: Gordubaradu Result: Destroyed by Y-45 Defender with Heavy Assault Rifle Performance ------------- Evolutions (1) 500 Regions Visited (2) 400 Robots Destroyed (50) 250 Value Destroyed (717) 717 Prototype IDs (0) 0 Alien Tech Used (0) 0 Bonus (38) 38 TOTAL SCORE: 1905 Bonus ------- High Alert Combat Kills 38 Cogmind --------- Core Integrity 0/400 Matter 265/300 Energy 96/100 System Corruption 1% Temperature Cool (0) Movement Core (700) Ox13 Location -9/Materials Parts ------- > --- POWER (1) -------- (None) > --- PROPULSION (2) --- (None) > --- UTILITY (4) ------ High-capacity Storage Unit > --- WEAPON (2) ------- (None) > --- INVENTORY (20) --- Ion Engine Light Ion Engine Wheel Medium Battery (150) Visual Processing Unit Sensor Array Terrain Scanner Terrain Scan Processor ECM Suite Light Armor Plating Shield Generator High-powered Tractor Beam Peak State ------------ > --- POWER ------------ Ion Engine > --- PROPULSION ------- Wheel Wheel > --- UTILITY ---------- High-capacity Storage Unit Structural Scanner Light Armor Plating Shield Generator > --- WEAPON ----------- Small Laser Grenade Launcher > --- INVENTORY -------- Ion Engine Light Ion Engine Wheel Medium Battery Visual Processing Unit Sensor Array Terrain Scanner Terrain Scan Processor ECM Suite Light Armor Plating EM Pulse Gun EM Pulse Gun Grenade Launcher [Rating: 11] Favorites ----------- Power Ion Engine Engine Ion Engine Propulsion Wheel Treads Light Treads Wheel Wheel Flight Unit Flight Unit Utility Structural Scanner Device Structural Scanner Storage High-capacity Storage Unit Protection Light Armor Plating Weapon Small Laser Energy Gun Small Laser Launcher Grenade Launcher Build | -11 -10 -9 ------- Run | Yrd Mat Mat Slots Evolved 2 | . . 2 Power . | . . . Propulsion . | . . . Utility 2 | . . 2 Weapon . | . . . Parts Attached 33 | 9 16 8 Power 3 | 1 1 1 Engine 3 | 1 1 1 Core . | . . . Reactor . | . . . Propulsion 11 | 4 7 . Treads 2 | 2 . . Leg . | . . . Wheel 7 | 2 5 . Hover . | . . . Flight 2 | . 2 . Utility 8 | 2 2 4 Device 4 | 1 1 2 Storage 3 | 1 1 1 Processor . | . . . Hackware . | . . . Protection 1 | . . 1 Artifact . | . . . Weapon 11 | 2 6 3 Energy Gun 7 | 2 3 2 Energy Cannon . | . . . Ballistic Gun . | . . . Ballistic Cannon . | . . . Launcher 4 | . 3 1 Special Weapon . | . . . Impact Weapon . | . . . Slashing Weapon . | . . . Piercing Weapon . | . . . Special Melee Weapon . | . . . Unidentified Prototypes . | . . . Parts Lost 16 | . 4 12 Power 3 | . 1 2 Propulsion 4 | . 2 2 Utility 3 | . . 3 Weapon 6 | . 1 5 Highest Loss Streak 11 | . 2 11 To Critical Strikes . | . . . Average Slot Usage (%) 94 | . 94 92 Engine 13 | . 13 10 Wheel 23 | . 25 19 Device 13 | . 11 20 Storage 13 | . 14 11 Protection 2 | . . 10 Energy Gun 13 | . 15 10 Launcher 12 | . 12 9 Naked Turns . | . . . Heaviest Build 55 | 12 50 55 Greatest Support 26 | 26 26 20 Greatest Overweight (x) 15 | . 4 15 Average Overweight (x) 1 | . 1 2 Largest Inventory Capacity 20 | 8 20 20 Average Capacity 14 | 7 14 20 Most Carried 15 | 4 14 15 Average Carried 7 | 1 7 13 Final Capacity 20 | 8 20 20 Final Carried 14 | 1 14 12 Class Distribution -------------------- 100% | Mutant Dominant Class ---------------- Mutant | -10/Materials Mutant | -9/Materials Resources | -11 -10 -9 ----------- Run | Yrd Mat Mat Matter Collected 789 | 290 395 104 Remotely . | . . . Salvage Created 1081 | 216 606 259 Parts 105 | 23 65 17 Haulers Intercepted 1 | . . 1 Recyclers Shooed 4 | . . 4 Parts Field Recycled . | . . . Retrieved Matter . | . . . Parts Self-Destructed . | . . . Prevented . | . . . Kills | -11 -10 -9 ------- Run | Yrd Mat Mat Combat Hostiles Destroyed 17 | . 11 6 Guns 4 | . 2 2 AOE 13 | . 9 4 Classes Destroyed 11 | 3 6 2 Worker 12 | 1 9 2 Builder 3 | . 3 . Tunneler 7 | 7 . . Hauler 1 | . . 1 Recycler 3 | 1 1 1 Mechanic 1 | . 1 . Operator 3 | . 3 . Watcher 3 | . 3 . Swarmer 8 | . 5 3 Grunt 8 | . 6 2 Duelist 1 | . . 1 Best Kill Streak 6 | 3 6 5 Combat Bots Only 4 | . 4 4 Max Kills in Single Turn 3 | 1 3 3 Gunslinging . | . . . Exploded 2 | . 2 2 Melee . | . . . Uniques/NPCs Destroyed . | . . . Combat | -11 -10 -9 -------- Run | Yrd Mat Mat Hostile Shots Fired 165 | . 38 127 Missed 49 | . 14 35 Damage Taken 1405 | . 335 1070 Core 472 | . 66 406 Absorbed by Shields 108 | . . 108 Core Remaining (%) 86 | 100 73 . Volleys Fired 114 | 25 53 36 Largest 2 | 2 2 2 Hottest 80 | 80 80 70 Shots Fired 176 | 45 84 47 Gun 140 | 45 59 36 Cannon . | . . . Launcher 36 | . 25 11 Special . | . . . Kinetic . | . . . Thermal 94 | 20 40 34 Explosive 36 | . 25 11 Electromagnetic 46 | 25 19 2 Robot Hit Streak 7 | 4 7 6 Robot Miss Streak 4 | 4 3 1 Penetration Max . | . . . Secondary Targets . | . . . Shots Hit Robots 77 | 20 29 28 Core Hits 80 | 8 49 23 Critical Kills . | . . . Critical Parts Destroyed . | . . . Critical Strikes . | . . . Melee Attacks . | . . . Impact . | . . . Slashing . | . . . Piercing . | . . . Sneak Attacks . | . . . Combat Hostiles . | . . . Follow-up Attacks . | . . . Damage Inflicted 2744 | 317 1414 1013 Guns 837 | 241 342 254 Cannons . | . . . Explosions 1907 | 76 1072 759 Melee . | . . . Ramming . | . . . Kinetic . | . . . Thermal 664 | 121 276 267 Explosive 1630 | . 911 719 Electromagnetic 450 | 196 227 27 Impact . | . . . Slashing . | . . . Piercing . | . . . Highest Corruption 1 | . . 1 Average Corruption 1 | . . 1 Corruption Purged . | . . . Corruption Blocked . | . . . Effects 2 | . . 2 Matter Fused 1 | . . 1 Data Loss (minor) 1 | . . 1 Overload Shots . | . . . Overflow Damage 60 | 38 17 5 Projectiles . | . . . Explosions 60 | 38 17 5 Melee . | . . . Knockbacks . | . . . Impact . | . . . Kinetic . | . . . Secondary . | . . . Self-Inflicted Damage 135 | . 115 20 Shots 7 | . 6 1 Rammed . | . . . Targets Rammed . | . . . Kicked . | . . . Crushed . | . . . Highest Temperature 94 | 54 48 94 Average Temperature 16 | 13 14 23 Received Heat Transfer 433 | . 36 397 Siege Activations . | . . . Robots Corrupted . | . . . Combat Hostiles . | . . . Parts Fried . | . . . Impact Corruptions . | . . . Robots Melted . | . . . Combat Hostiles . | . . . Parts Melted . | . . . Heat Transferred 1425 | 200 600 625 Parts Sabotaged . | . . . Parts Stolen . | . . . Parts Stripped . | . . . Power Chain Reactions 6 | 2 3 1 Alert | -11 -10 -9 ------- Run | Yrd Mat Mat Peak Influence 537 | 45 537 423 Initial 144 | . 29 144 Average 289 | 17 366 276 Maximum Alert Level 2 | . 2 2 Low Security (%) 34 | 100 17 31 Level 1 25 | . 20 63 Level 2 39 | . 61 4 Level 3 . | . . . Level 4 . | . . . Level 5 . | . . . High Security . | . . . Max Security . | . . . Squads Dispatched 4 | . 2 2 Investigation 2 | . 1 1 Extermination . | . . . Reinforcement 2 | . 1 1 Assault . | . . . Garrison . | . . . Intercept . | . . . Searches Triggered . | . . . Construction Impeded . | . . . Haulers Reinforced . | . . . Active Scanning Responses . | . . . Cargo Convoy Interrupts . | . . . Stealth | -11 -10 -9 --------- Run | Yrd Mat Mat Distress Signals 4 | . 1 3 Communications Jammed . | . . . Distress Signals . | . . . Times Spotted 34 | . 19 15 Peak Tracking Total 7 | . 5 7 Tactical Retreats . | . . . Traps | -11 -10 -9 ------- Run | Yrd Mat Mat Traps Triggered . | . . . Indirectly . | . . . Trap Hack Attempts . | . . . Triggered . | . . . Disarmed . | . . . Reprogrammed . | . . . Reused . | . . . Traps Extracted . | . . . Installed . | . . . Triggered . | . . . Machines | -11 -10 -9 ---------- Run | Yrd Mat Mat Machines Disabled 11 | . 9 2 Max in Single Turn 2 | . 2 1 Machines Repaired . | . . . Machines Dismantled . | . . . Machines Sabotaged . | . . . Overloaded Fab Kills . | . . . Hacking | -11 -10 -9 --------- Run | Yrd Mat Mat Machines Accessed 8 | . 6 2 Terminals 7 | . 5 2 Fabricators . | . . . Repair Stations . | . . . Recycling Units 1 | . 1 . Scanalyzers . | . . . Garrison Access . | . . . Total Hacks 22 | . 17 5 Successful 10 | . 6 4 Failed 12 | . 11 1 Catastrophic 2 | . 2 . Database Lockouts . | . . . Manual . | . . . Terminals 18 | . 13 5 Fabricators . | . . . Repair Stations . | . . . Recycling Units 4 | . 4 . Scanalyzers . | . . . Garrison Access . | . . . Terminal Hacks 9 | . 5 4 Record 5 | . 3 2 Alert Level 1 | . . 1 Dispatch Records 1 | . 1 . Maintenance Status 1 | . 1 . Hauler Manifests 1 | . . 1 Fabricator Hacks . | . . . Repair Station Hacks . | . . . Recycling Unit Hacks 1 | . 1 . Report Inventory 1 | . 1 . Scanalyzer . | . . . Garrison Access Hacks . | . . . Unauthorized Hacks . | . . . Terminals . | . . . Fabricators . | . . . Repair Stations . | . . . Recycling Units . | . . . Scanalyzers . | . . . Garrison Access . | . . . Data Cores Recovered 2 | . 2 . Used . | . . . Hacking Detections 6 | . 4 2 Full Trace Events 3 | . 2 1 Feedback Events 1 | . . 1 Corruption 1 | . . 1 Feedback Blocked . | . . . Robot Schematics Acquired . | . . . Robots Built . | . . . Authchips . | . . . Time . | . . . Total Robot Build Rating . | . . . Part Schematics Acquired . | . . . Parts Built . | . . . Authchips . | . . . Time . | . . . Total Part Build Rating . | . . . Parts Repaired . | . . . Time . | . . . Parts Recycled . | . . . Recycled Matter . | . . . Retrieved Matter . | . . . Retrieved Components . | . . . Parts Scanalyzed . | . . . Part Schematics Acquired . | . . . Parts Damaged . | . . . Bothacking | -11 -10 -9 ------------ Run | Yrd Mat Mat Used RIF Installer . | . . . Robots Hacked . | . . . Non-combat . | . . . Combat . | . . . Robot Hacks Applied . | . . . Relay Couplers Released . | . . . Fabnet Peak Effective % . | . . . Robots Rewired . | . . . Allies Hacked . | . . . Hacks Repelled . | . . . Allies | -11 -10 -9 -------- Run | Yrd Mat Mat Total Allies . | . . . Largest Group . | . . . Highest-Rated Group . | . . . Highest-Rated Ally . | . . . Total Orders . | . . . Ally Attacks . | . . . Total Damage . | . . . Kills . | . . . Allies Corrupted . | . . . Allies Melted . | . . . Intel | -11 -10 -9 ------- Run | Yrd Mat Mat Robot Analysis Total . | . . . Derelict Logs Recovered . | . . . Drone Launches . | . . . Drone Recoveries . | . . . Exploration | -11 -10 -9 ------------- Run | Yrd Mat Mat Turns Passed 1305 | 220 823 262 Spaces Moved 913 | 117 659 137 Core 7 | 5 . 2 Treads . | . . . Legs . | . . . Wheels 906 | 112 659 135 Hover . | . . . Flight . | . . . Fastest Speed 50 | 50 80 110 Average Speed 99 | 88 97 120 Slowest Speed 800 | 100 140 800 Overloaded Moves . | . . . Propulsion Burnouts . | . . . Robots Hopped . | . . . Cave-ins Triggered . | . . . Exploration Rate (%) 39 | 6 95 18 Regions Visited 2 Branch Regions . Pre-discovered Areas . | . . . Known Exits Taken . | . . . Unknown Exits Taken 2 | 1 1 . Scrap Searched . | . . . Spaces Dug . | . . . Terrain Destroyed 218 | 7 162 49 Melee . | . . . Projectile . | . . . AOE 218 | 7 162 49 Terrain Rammed . | . . . Walls Destroyed . | . . . Machines Disabled . | . . . Actions | -11 -10 -9 --------- Run | Yrd Mat Mat Total 1133 | 189 753 191 Wait 32 | 26 . 6 Move 911 | 116 658 137 Hop . | . . . Pick Up 36 | 10 22 4 Fast Attach . | . . . Attach 21 | 9 6 6 Detach . | . . . Swap 12 | . 10 2 Drop 7 | 3 4 . Fire 114 | 25 53 36 Melee . | . . . Ram . | . . . Kick . | . . . Crush . | . . . Escape Stasis . | . . . Rewire . | . . . Trap . | . . . Miscellaneous . | . . . Route ------- -11/Scrapyard -10/Materials (discovered 6 exits: *Mat x3 / [*Min x2] / [*Sub]) -9/Materials (discovered 1 exit: [*Min]) History --------- Turn | Location | Event 45 | -11/Scrapyard | Discovered new exit (range 16) 221 | -11/Scrapyard | Entered Materials 221 | -10/Materials | Discovered new exit (range 7) 309 | -10/Materials | Discovered new exit (range 16) 324 | -10/Materials | Build established: Mutant 434 | -10/Materials | Discovered new exit (range 8) 461 | -10/Materials | Discovered new exit (range 7) 578 | -10/Materials | Discovered new exit (range 11) 693 | -10/Materials | Discovered new exit (range 7) 1044 | -10/Materials | Entered another Materials area 1044 | -9/Materials | Evolved 2 slots: Utility x2 1200 | -9/Materials | Discovered new exit (range 14) 1295 | -9/Materials | Core integrity fell below 50% 1302 | -9/Materials | Core integrity fell below 20% 1306 | -9/Materials | Destroyed by Y-45 Defender with Heavy Assault Rifle Last Messages --------------- Engine. 01289_ U-05 Engineer lays Concrete. 01290_ EM Pulse Gun destroyed. 01290_ U-05 Engineer lays Concrete. 01290_ U-05 Engineer builds a Wall. 01291_ U-05 Engineer lays Concrete. 01291_ U-05 Engineer builds a Wall. 01291_ Connecting with Terminal... 01293_ U-05 Engineer lays Concrete. 01294_ EM Pulse Gun destroyed. 01294_ U-05 Engineer lays Concrete. 01294_ U-05 Engineer builds a Wall. 01295_ U-05 Engineer lays Concrete. 01296_ U-05 Engineer builds a Wall. 01297_ U-05 Engineer lays Concrete. 01299_ Structural Scanner destroyed. 01300_ U-05 Engineer lays Concrete. 01301_ U-05 Engineer builds a Wall. 01303_ Ion Engine destroyed. 01303_ U-05 Engineer lays Concrete. Map ----- +----------------------------------------------------+ | ????????????????????????? [ ## | | ????????????????????????? ! ### | | ?????????????????????????######### """ * ### | | ????????????????????????? """ = ##? | | ??????????????????????## ?"" "" """ ##? | | ??????????????????????## """ """ ##? | | ??????????????????????## """ """ # ##? | | ?????????????????????? # #####? | | ??????????????????????## ]] ###### | | ??????????????????????## ]] ###+####### | | ????????????????????? ## ]] ! [ ! | | ??????????## ? # ########## # ! | | ??????????## ###+####### ###### | | ??????????## = * # [ ! ! | | ??????????## # | | ????????? ############# | | ?????????????/###### ###########+############## | | ????????????? ## ## ! # ""??????????? | | ???????????????????## ## # ????????????????? | | ?????? # ??????????## ## # ????????????????? | | ?????? # ??????????## ## # ????????????????? | | ?????? # ????????## # !! # ????????????????? | | ???? # ? ## u ##[! # ????????????????? | | # ## ######Yu ## %= # ????????????????? | | ##### [ #####u # """ # ????????????????? | | = ]%] / YgY @ """ # ????????????????? | | [] [ < Tg ; """ ##????????????????? | | %[] % ; ##????????????????? | | #### / ##### g # ##????????????????? | | ### ! ! "###### #########????????????????? | | ???? #"""""""##?### ##### ????????????????? | | ?????? ######### ?? # ???????????????????????? | | ?????? ######### ?? # ?????????????????????? | | ??????????????????? # ???????????????????? | | ??????????????????? # ##### ?????????????????? | | ??????????????????? # #######+?????????????????? | | ??????????????????? + ##??? ?????????????????? | | ???????????????????+# ???????????????????????? | | ??????????????????? ##???????????????????????? | | ???????????????????? ###???????????????????????? | | ????????????????????? ###???????????????????????? | | ?????????????????????????????????????????????????? | | ?????????????????????????????????????????????????? | | ?????????????????????????????????????????????????? | | ?????????????????????????????????????????????????? | | ?????????????????????????????????????????????????? | | ?????????????????????????????????????????????????? | | ?????????????????????????????????????????????????? | | ?????????????????????????????????????????????????? | | ?????????????????????????????????????????????????? | +----------------------------------------------------+ Best States ------------- Heat Dissipation 28 Energy Generation 10 Energy Capacity 250 Matter Stores 300 Matter Capacity 300 Sight Range 16 Terrain Scan Range 14 Terrain Scan Density 10 Armor Coverage 150 Evasion (%) 44 Recoil Reduction 2 Item Schematics ----------------- None Robot Schematics ------------------ None Fabricated ------------ Nothing Alien Tech Used ----------------- None Achievements -------------- None Challenges ------------ None Game ------ Seed IonMakeshiftArchive Manual? 0 Play Time 00:38:13 Cumulative 1.7 hours Start 2024.06.18 @ 20:23:19 End 2024.06.19 @ 00:08:34 Sessions 3 Manual Loads 0 Difficulty Rogue Special Mode None Game No. 4 Rogue 4 Adventurer 0 Explorer 0 Win Type - Total 0 Types 0/0/0/0/0/0/0/0/0 Lore% 1 Gallery% 3 Achievement% 5 Wizard Run 0 Options --------- Layout 1 ASCII 0 Keyboard 0 Movement Mouse Keybinds 0 Fullscreen 1 Font 32/Terminus Map View 50x35 Zoom Use 0% Tactical HUD 1 Map Filters NONE Filters NONE Steam 1 RUN: d6077c29-a64f-416f-9fd4-058afbc4ea2d